Cogmind - Beta 12 @@@ ROGUE MODE // 2023.10.22 @ 23:57:46 Player: Pitt Result: Destroyed by H-55 Commando with Gauss Rifle Performance ------------- Evolutions (2) 1000 Regions Visited (3) 600 Robots Destroyed (32) 160 Value Destroyed (913) 913 Prototype IDs (0) 0 Alien Tech Used (0) 0 Bonus (11) 11 TOTAL SCORE: 2684 Bonus ------- High Alert Combat Kills 11 Cogmind --------- Core Integrity 0/550 Matter 300/300 Energy 63/100 System Corruption 0% Temperature Cool (0) Movement Core (150) Ox2 Location -8/Materials Parts ------- > --- POWER (1) -------- (None) > --- PROPULSION (4) --- (None) > --- UTILITY (3) ------ Hardlight Generator > --- WEAPON (3) ------- Heavy Mace > --- INVENTORY (5) ---- Light Nuclear Core Huge Storage Unit Seismic Detector Peak State ------------ > --- POWER ------------ Light Ion Engine > --- PROPULSION ------- Improved Hover Unit Improved Hover Unit Improved Hover Unit Improved Hover Unit > --- UTILITY ---------- Improved Heat Sink Small Storage Unit Light Armor Plating > --- WEAPON ----------- Medium Laser Pulse Rifle > --- INVENTORY -------- Light Ion Engine Huge Storage Unit Medium Matter Pod Weight Redist. System Structural Scanner Seismic Detector Core Shielding Hardlight Generator [Rating: 19] Favorites ----------- Power Light Ion Engine Engine Light Ion Engine Propulsion Compact Wheel Wheel Compact Wheel Hover Unit Improved Hover Unit Utility Small Storage Unit Device Improved Terrain Scanner Storage Small Storage Unit Protection Light Armor Plating Weapon Medium Laser Energy Gun Medium Laser Impact Weapon Heavy Mace Special Melee Weapon Improved Datajack Build | -11 -10 -9 -8 ------- Run | Jun Mat Mat Mat Slots Evolved 4 | . . 2 2 Power . | . . . . Propulsion 2 | . . . 2 Utility 1 | . . 1 . Weapon 1 | . . 1 . Parts Attached 26 | 7 2 7 10 Power 4 | 1 1 1 1 Engine 4 | 1 1 1 1 Core . | . . . . Reactor . | . . . . Propulsion 6 | 2 . 2 2 Treads . | . . . . Leg . | . . . . Wheel 2 | 2 . . . Hover 4 | . . 2 2 Flight . | . . . . Utility 9 | 2 . 3 4 Device 4 | 1 . 1 2 Storage 1 | 1 . . . Processor . | . . . . Hackware . | . . . . Protection 4 | . . 2 2 Artifact . | . . . . Weapon 7 | 2 1 1 3 Energy Gun 5 | 2 1 1 1 Energy Cannon . | . . . . Ballistic Gun . | . . . . Ballistic Cannon . | . . . . Launcher . | . . . . Special Weapon . | . . . . Impact Weapon 1 | . . . 1 Slashing Weapon . | . . . . Piercing Weapon . | . . . . Special Melee Weapon 1 | . . . 1 Unidentified Prototypes . | . . . . Parts Lost 15 | . . 2 13 Power 2 | . . . 2 Propulsion 4 | . . . 4 Utility 6 | . . 2 4 Weapon 3 | . . . 3 Highest Loss Streak 5 | . . 1 5 To Critical Strikes . | . . . . Average Slot Usage (%) 85 | . 100 88 54 Engine 11 | . 14 11 5 Wheel 17 | . 28 14 . Hover 5 | . . 7 15 Device 11 | . 14 14 5 Storage 11 | . 14 11 6 Protection 4 | . . 7 8 Energy Gun 22 | . 28 22 10 Naked Turns 19 | . . . 19 Heaviest Build 19 | 13 13 19 17 Greatest Support 32 | 32 32 32 28 Greatest Overweight (x) 5 | . . 2 5 Average Overweight (x) . | . . . . Largest Inventory Capacity 8 | 8 8 8 8 Average Capacity 7 | 7 8 8 7 Most Carried 8 | 2 8 8 8 Average Carried 5 | 1 3 7 6 Final Capacity 8 | 8 8 8 5 Final Carried 8 | 2 8 8 3 Class Distribution -------------------- 91% | Mutant 5% | Scavenger-Tank Dominant Class ---------------- Mutant | -10/Materials Mutant | -9/Materials Mutant | -8/Materials Resources | -11 -10 -9 -8 ----------- Run | Jun Mat Mat Mat Matter Collected 530 | 270 20 155 85 Remotely . | . . . . Salvage Created 1175 | 162 181 373 459 Parts 53 | 9 11 21 12 Haulers Intercepted . | . . . . Recyclers Shooed . | . . . . Parts Field Recycled . | . . . . Retrieved Matter . | . . . . Parts Self-Destructed . | . . . . Prevented . | . . . . Kills | -11 -10 -9 -8 ------- Run | Jun Mat Mat Mat Combat Hostiles Destroyed 22 | . 5 8 9 Melee 3 | . . . 3 Guns 16 | . 5 7 4 Classes Destroyed 10 | 2 4 2 2 Builder 1 | . 1 . . Tunneler 3 | 3 . . . Recycler 2 | 1 . 1 . Operator 1 | . . . 1 Watcher 3 | . 1 1 1 Swarmer 6 | . 3 3 . Grunt 8 | . 2 1 5 Duelist 2 | . . 1 1 Sentry 4 | . . 3 1 Hunter 2 | . . . 2 Best Kill Streak 5 | 4 4 3 5 Combat Bots Only 4 | . 3 3 4 Max Kills in Single Turn 2 | 1 1 2 1 Gunslinging 1 | . . 1 . Exploded . | . . . . Melee 1 | . . . 1 Uniques/NPCs Destroyed . | . . . . Combat | -11 -10 -9 -8 -------- Run | Jun Mat Mat Mat Damage Taken 1958 | . 184 271 1503 Core 614 | . 44 6 564 Absorbed by Shields 4 | . . . 4 Redirected to Shielding 41 | . . . 41 Core Remaining (%) 93 | 100 82 98 . Volleys Fired 84 | 11 16 27 30 Largest 3 | 2 2 3 2 Hottest 156 | 100 100 156 113 Shots Fired 152 | 22 32 56 42 Gun 152 | 22 32 56 42 Cannon . | . . . . Launcher . | . . . . Special . | . . . . Kinetic . | . . . . Thermal 152 | 22 32 56 42 Explosive . | . . . . Electromagnetic . | . . . . Robot Hit Streak 18 | 6 5 9 18 Robot Miss Streak 3 | 2 3 2 2 Penetration Max . | . . . . Secondary Targets 2 | . . 1 1 Max Gunslinging Chain 1 | . . 1 1 Shots Hit Robots 114 | 14 18 40 42 Core Hits 47 | 5 10 16 16 Critical Kills 1 | . . . 1 Critical Parts Destroyed 3 | . . . 3 Critical Strikes 15 | 2 2 5 6 Burn 11 | 2 2 5 2 Smash 4 | . . . 4 Melee Attacks 11 | . . . 11 Impact 9 | . . . 9 Slashing . | . . . . Piercing . | . . . . Sneak Attacks 1 | . . . 1 Combat Hostiles . | . . . . Follow-up Attacks . | . . . . Damage Inflicted 1761 | 214 225 512 810 Guns 1394 | 214 225 512 443 Cannons . | . . . . Explosions . | . . . . Melee 367 | . . . 367 Ramming . | . . . . Kinetic . | . . . . Thermal 1394 | 214 225 512 443 Explosive . | . . . . Electromagnetic . | . . . . Impact 367 | . . . 367 Slashing . | . . . . Piercing . | . . . . Highest Corruption . | . . . . Average Corruption . | . . . . Corruption Purged . | . . . . Corruption Blocked . | . . . . Overload Shots . | . . . . Overflow Damage 183 | . . . 183 Projectiles . | . . . . Explosions . | . . . . Melee 183 | . . . 183 Knockbacks 3 | . . . 3 Impact 3 | . . . 3 Kinetic . | . . . . Secondary . | . . . . Self-Inflicted Damage . | . . . . Shots . | . . . . Rammed . | . . . . Targets Rammed . | . . . . Kicked . | . . . . Crushed . | . . . . Highest Temperature 333 | 312 333 206 265 Average Temperature 108 | 133 113 80 105 Received Heat Transfer 603 | . 60 93 450 Effects 5 | 1 3 . 1 Energy Bleed 2 | 1 . . 1 Interference 3 | . 3 . . Siege Activations . | . . . . Robots Corrupted . | . . . . Combat Hostiles . | . . . . Parts Fried 3 | . . . 3 Impact Corruptions 6 | . . . 6 Robots Melted 3 | . . 2 1 Combat Hostiles 2 | . . 1 1 Parts Melted 12 | . 3 3 6 Heat Transferred 4773 | 777 814 1850 1332 Parts Sabotaged . | . . . . Parts Stolen . | . . . . Parts Stripped . | . . . . Power Chain Reactions . | . . . . Missiles Intercepted . | . . . . Alert | -11 -10 -9 -8 ------- Run | Jun Mat Mat Mat Peak Influence 495 | 20 161 495 266 Initial 208 | . 13 67 208 Average 122 | 10 52 246 158 Maximum Alert Level 2 | . . 2 1 Low Security (%) 82 | 100 100 42 87 Level 1 13 | . . 41 12 Level 2 3 | . . 15 . Level 3 . | . . . . Level 4 . | . . . . Level 5 . | . . . . High Security . | . . . . Max Security . | . . . . Squads Dispatched 3 | . . 1 2 Investigation 1 | . . . 1 Extermination . | . . . . Reinforcement 2 | . . 1 1 Assault . | . . . . Garrison . | . . . . Intercept . | . . . . Searches Triggered . | . . . . Construction Impeded . | . . . . Haulers Reinforced . | . . . . Active Scanning Responses . | . . . . Cargo Convoy Interrupts . | . . . . Stealth | -11 -10 -9 -8 --------- Run | Jun Mat Mat Mat Distress Signals 4 | . 1 3 . Communications Jammed . | . . . . Distress Signals . | . . . . Times Spotted 39 | . 8 18 13 Peak Tracking Total 6 | . 4 6 5 Tactical Retreats 4 | . . 4 . Traps | -11 -10 -9 -8 ------- Run | Jun Mat Mat Mat Traps Triggered . | . . . . Indirectly . | . . . . Trap Hack Attempts . | . . . . Triggered . | . . . . Disarmed . | . . . . Reprogrammed . | . . . . Reused . | . . . . Traps Extracted . | . . . . Installed . | . . . . Triggered . | . . . . Machines | -11 -10 -9 -8 ---------- Run | Jun Mat Mat Mat Machines Disabled . | . . . . Max in Single Turn . | . . . . Machines Repaired . | . . . . Machines Sabotaged . | . . . . Overloaded Fab Kills . | . . . . Hacking | -11 -10 -9 -8 --------- Run | Jun Mat Mat Mat Machines Accessed 8 | . 5 1 2 Terminals 8 | . 5 1 2 Fabricators . | . . . . Repair Stations . | . . . . Recycling Units . | . . . . Scanalyzers . | . . . . Garrison Access . | . . . . Total Hacks 28 | . 15 3 10 Successful 14 | . 8 1 5 Failed 14 | . 7 2 5 Catastrophic 1 | . . . 1 Database Lockouts . | . . . . Manual 20 | . 11 2 7 Terminals 28 | . 15 3 10 Fabricators . | . . . . Repair Stations . | . . . . Recycling Units . | . . . . Scanalyzers . | . . . . Garrison Access . | . . . . Terminal Hacks 9 | . 4 1 4 Terminal Index 2 | . 1 . 1 Alert Level 4 | . 1 1 2 Unreport Threat 1 | . . . 1 Locate Traps 1 | . 1 . . Reinforcement Status 1 | . 1 . . Fabricator Hacks . | . . . . Repair Station Hacks . | . . . . Recycling Unit Hacks . | . . . . Scanalyzer . | . . . . Garrison Access Hacks . | . . . . Unauthorized Hacks 5 | . 4 . 1 Terminals 5 | . 4 . 1 Track 1 | . 1 . . Botnet 3 | . 2 . 1 Operators 1 | . 1 . . Fabricators . | . . . . Repair Stations . | . . . . Recycling Units . | . . . . Scanalyzers . | . . . . Garrison Access . | . . . . Data Cores Recovered . | . . . . Used . | . . . . Hacking Detections 6 | . 3 1 2 Full Trace Events 1 | . . . 1 Feedback Events . | . . . . Feedback Blocked . | . . . . Robot Schematics Acquired . | . . . . Robots Built . | . . . . Authchips . | . . . . Time . | . . . . Total Robot Build Rating . | . . . . Part Schematics Acquired . | . . . . Parts Built . | . . . . Authchips . | . . . . Time . | . . . . Total Part Build Rating . | . . . . Parts Repaired . | . . . . Time . | . . . . Parts Recycled . | . . . . Recycled Matter . | . . . . Retrieved Matter . | . . . . Retrieved Components . | . . . . Parts Scanalyzed . | . . . . Part Schematics Acquired . | . . . . Parts Damaged . | . . . . Bothacking | -11 -10 -9 -8 ------------ Run | Jun Mat Mat Mat Used RIF Installer . | . . . . Robots Hacked 2 | . . . 2 Non-combat 1 | . . . 1 Combat 1 | . . . 1 Robot Hacks Applied 2 | . . . 2 parse_system 1 | . . . 1 find_recycling 1 | . . . 1 Relay Couplers Released . | . . . . Fabnet Peak Effective % . | . . . . Robots Rewired . | . . . . Allies Hacked . | . . . . Hacks Repelled . | . . . . Allies | -11 -10 -9 -8 -------- Run | Jun Mat Mat Mat Total Allies . | . . . . Largest Group . | . . . . Highest-Rated Group . | . . . . Highest-Rated Ally . | . . . . Total Orders . | . . . . Ally Attacks . | . . . . Total Damage . | . . . . Kills . | . . . . Allies Corrupted . | . . . . Allies Melted . | . . . . Intel | -11 -10 -9 -8 ------- Run | Jun Mat Mat Mat Robot Analysis Total . | . . . . Derelict Logs Recovered . | . . . . Drone Launches . | . . . . Drone Recoveries . | . . . . Exploration | -11 -10 -9 -8 ------------- Run | Jun Mat Mat Mat Turns Passed 1535 | 116 680 389 350 Spaces Moved 928 | 59 277 328 264 Core 132 | 1 . . 131 Treads . | . . . . Legs . | . . . . Wheels 470 | 58 277 135 . Hover 326 | . . 193 133 Flight . | . . . . Fastest Speed 48 | 50 100 56 48 Average Speed 84 | 99 100 74 76 Slowest Speed 300 | 100 100 185 300 Overloaded Moves . | . . . . Propulsion Burnouts . | . . . . Robots Hopped . | . . . . Cave-ins Triggered . | . . . . Exploration Rate (%) 23 | 3 39 35 17 Regions Visited 3 Branch Regions . Pre-discovered Areas . | . . . . Known Exits Taken . | . . . . Unknown Exits Taken 3 | 1 1 1 . Scrap Searched . | . . . . Spaces Dug . | . . . . Terrain Destroyed . | . . . . Melee . | . . . . Projectile . | . . . . AOE . | . . . . Terrain Rammed . | . . . . Walls Destroyed . | . . . . Machines Disabled . | . . . . Actions | -11 -10 -9 -8 --------- Run | Jun Mat Mat Mat Total 1517 | 90 648 425 354 Wait 439 | 12 346 51 30 Move 925 | 58 276 327 264 Hop . | . . . . Pick Up 17 | 2 6 5 4 Fast Attach 17 | 7 . 5 5 Attach 6 | . . 1 5 Detach 1 | . . . 1 Swap 3 | . 2 1 . Drop 14 | . 2 8 4 Fire 84 | 11 16 27 30 Melee 11 | . . . 11 Ram . | . . . . Kick . | . . . . Crush . | . . . . Escape Stasis . | . . . . Rewire . | . . . . Trap . | . . . . Miscellaneous . | . . . . Route ------- -11/Junkyard -10/Materials -9/Materials (discovered 2 exits: *Mat / [*Min]) -8/Materials History --------- Turn | Location | Event 10 | -11/Junkyard | Discovered new exit (range 14) 117 | -11/Junkyard | Entered Materials 308 | -10/Materials | Build established: Mutant 765 | -10/Materials | Discovered new exit (range 6) 797 | -10/Materials | Entered another Materials area 797 | -9/Materials | Evolved 2 slots: Utility x1, Weapon x1 1010 | -9/Materials | Discovered new exit (range 13) 1172 | -9/Materials | Discovered new exit (range 10) 1186 | -9/Materials | Entered another Materials area 1186 | -8/Materials | Evolved 2 slots: Propulsion x2 1390 | -8/Materials | Lost 4 parts (1p3n) 1448 | -8/Materials | Core integrity fell below 50% 1489 | -8/Materials | Lost 5 parts (2u3w) 1491 | -8/Materials | Core integrity fell below 20% 1536 | -8/Materials | Destroyed by H-55 Commando with Gauss Rifle Last Messages --------------- 01511_ Destroyed Lgt. Nuclear Core. 01511_ G-47 Trooper system corrupted by crushing effect. 01511_ Imp. Heat Sink fried. 01511_ G-47 Trooper destroyed. 01511_ Slug penetrates Wall. 01514_ G-47 Trooper suffers critical hit (Smash). 01514_ G-47 Trooper destroyed. 01514_ Slug penetrates Wall. 01524_ Hrd. Medium Armor Plating destroyed. 01525_ G-47 Trooper knocked back. 01527_ Penetrated by Slug. 01529_ G-47 Trooper suffers critical hit (Smash). 01529_ Destroyed Particle Gun. 01529_ Destroyed Lgt. Nuclear Core. 01529_ G-47 Trooper system corrupted by crushing effect. 01529_ G-47 Trooper knocked back. 01530_ G-47 Trooper system terminally corrupted. 01530_ Imp. Heat Sink fried. 01530_ Lgt. Deuterium Engine destroyed. 01536_ Acquired 35 matter. Map ----- +----------------------------------------------------+ | ?????????????????????????????????? | | ?????????????????????????????????? | | ?????????????????????????????????? | | ?????????????????????????????????? | | ?????????????????????????????????? | | ?????????????????????????????????? | | ?????????????????????????????????? | | ?????????????????????????????????? | | ?????????????????????????????????? | | ?????????????????????????????????? | | ?????????????????????????????????? | | ?????????????????????????????????? | | ?????????????????????????????????? | | ?????????????????????????????????? | | ?????????????????????????????????? | | ?????????????????????????????????? | | ?????????????????????????????????? | | ?????????????????????????????????? | | ?????????????????????????????????? | | ?????????????????????????????????? | | ????????????????????????########?? | | ????????????????????????# ! #?? | | ????????????????????????# #?? | | ????????# #########[ = #?? | | ????????# %=+%% #?? | | ????????? ?????########[#@! #?? | | ????????# ????????????# # h #?? | | ????????# ????????????#%#####+##?? | | ????????# ????????????# #???? #??? | | ????????# ????????????# ##### #??? | | ????????# ????????????# #??? | | ????????# ??########### #??? | | ????????+ #?# """ """ # #??? | | ????????# #?# """ """ + #??? | | ????????# ### """ """ #+#######??? | | ######??# # #??????????? | | # [ ??# / ! #??????????? | | ? ?# # * #??????????? | | ?? ?# # * #??????????? | | ??""""" # # #??????????? | | ??""""" # ###########??????????? | | ??""""" + #############????????? | | ??""""" # # #????????? | | ??""""" # # #????????? | | ??"""""?# # #????????? | | ???""""?# # #????????? | | ??? ??# # #????????? | | ???###??# / #????????? | | ?#####??# # #????????? | | ?#!! #??# ###+#########????????? | +----------------------------------------------------+ Best States ------------- Heat Dissipation 45 Energy Generation 14 Energy Capacity 140 Matter Stores 300 Matter Capacity 300 Sight Range 16 Terrain Scan Range 16 Terrain Scan Density 10 Armor Coverage 225 Core Shielding 20 Evasion (%) 55 Item Schematics ----------------- None Robot Schematics ------------------ None Fabricated ------------ Nothing Alien Tech Used ----------------- None Achievements -------------- None Challenges ------------ None Game ------ Seed WarpNeutronChronowheel Manual? 0 Play Time 00:22:06 Cumulative 175.0 hours Start 2023.10.22 @ 23:31:32 End 2023.10.22 @ 23:57:46 Sessions 1 Manual Loads 0 Difficulty Rogue Special Mode None Game No. 264 Rogue 264 Adventurer 0 Explorer 0 Win Type - Total 0 Types 0/0/0/0/0/0/0/0/0 Lore% 51 Gallery% 59 Achievement% 40 Wizard Run 0 Options --------- ASCII 0 Keyboard 0 Movement Mouse Keybinds 0 Fullscreen 1 Font 12/Smallcaps Map View 83x54 Tactical HUD 1 Map Filters NONE Filters NONE Steam 1 RUN: 13be80e0-c190-4d82-a0ae-1c253030a2fe